fUST/lending_fUST_20250608
["ID","MTS","AMOUNT","RATE_DAILY","PERIOD"]
[364964761,1749360634931,-453.41059763,0.00019178,2]
[364964762,1749360634940,-440.0,0.00019178,2]
[364964763,1749360634950,-182.3742132,0.00019178,2]
[364964764,1749360634960,-440.0,0.00019178,2]
[364964765,1749360634969,-430.0,0.00019178,2]
[364964766,1749360634980,-420.0,0.00019178,2]
[364964767,1749360634990,-440.0,0.00019178,2]
[364964768,1749360635000,-440.0,0.00019178,2]
[364964769,1749360635010,-440.0,0.00019178,2]
[364964770,1749360635021,-440.0,0.00019178,2]
[364964771,1749360635030,-440.0,0.00019178,2]
[364964772,1749360635040,-453.10434963,0.00019178,2]
[364964773,1749360635050,-430.0,0.00019178,2]
[364964774,1749360635060,-156.12328826,0.00019178,2]
[364964775,1749360635070,-440.0,0.00019178,2]
[364964776,1749360635080,-440.0,0.00019178,2]
[364964777,1749360635092,-440.0,0.00019178,2]
[364964778,1749360635103,-427.75107115,0.00019178,2]
[364964779,1749360635113,-440.0,0.00019178,2]
[364964780,1749360635124,-440.0,0.00019178,2]
[364964781,1749360635133,-440.0,0.00019178,2]
[364964782,1749360635143,-426.03995349,0.00019178,2]
[364964783,1749360635153,-440.0,0.00019178,2]
[364964784,1749360635164,-440.0,0.00019178,2]
[364964785,1749360635174,-440.0,0.00019178,2]
[364964786,1749360635184,-440.0,0.00019178,2]
[364964787,1749360635194,-440.0,0.00019178,2]
[364964788,1749360635203,-440.0,0.00019178,2]
[364964789,1749360635213,-440.0,0.00019178,2]
[364964790,1749360635224,-440.0,0.00019178,2]
[364964791,1749360635233,-457.33359813,0.00019178,2]
[364964792,1749360635243,-440.0,0.00019178,2]
[364964793,1749360635254,-420.0,0.00019178,2]
[364964794,1749360635264,-500.0,0.00019178,2]
[364964795,1749360635274,-500.0,0.00019178,2]
[364964796,1749360635283,-500.0,0.00019178,2]
[364964797,1749360635293,-594.44691719,0.00019178,2]
[364964798,1749360635302,-440.0,0.00019178,2]
[364964799,1749360635312,-213.16871835,0.00019178,2]
[364964800,1749360635322,-440.0,0.00019178,2]
[364964801,1749360635332,-466.28102834,0.00019178,2]
[364964802,1749360635341,-461.43472963,0.00019178,2]
[364964803,1749360635352,-472.42407138,0.00019178,2]
[364964804,1749360635362,-439.54914679,0.00019178,2]
[364964805,1749360635373,-440.0,0.00019178,2]
[364964806,1749360635383,-440.0,0.00019178,2]
[364964807,1749360635393,-440.0,0.00019178,2]
[364964808,1749360635403,-440.0,0.00019178,2]
[364964809,1749360635413,-350.0,0.00019178,2]
[364964810,1749360635423,-459.94105785,0.00019178,2]
[364964811,1749360635433,-440.0,0.00019178,2]
[364964812,1749360635443,-469.93902303,0.00019178,2]
[364964813,1749360635452,-440.0,0.00019178,2]
[364964814,1749360635462,-440.0,0.00019178,2]
[364964815,1749360635472,-1338.61,0.00019178,2]
[364964816,1749360635482,-499.29314434,0.00019178,2]
[364964817,1749360635492,-440.0,0.00019178,2]
[364964818,1749360635503,-430.0,0.00019178,2]
[364964819,1749360635514,-440.0,0.00019178,2]
[364964820,1749360635523,-430.0,0.00019178,2]
[364964821,1749360635533,-369.33902747,0.00019178,2]
[364964822,1749360635641,-60.66097253,0.00019178,2]
[364964823,1749360635651,-440.0,0.00019178,2]
[364964824,1749360635662,-419.69853494,0.00019178,2]
[364964828,1749360637987,-23.35795022,0.00019178,2]
[364964829,1749360638000,-440.0,0.00019178,2]
[364964830,1749360638011,-562.07,0.00019178,2]
[364964831,1749360638021,-452.71314791,0.00019178,2]
[364964832,1749360638031,-440.0,0.00019178,2]
[364964833,1749360638041,-632.88,0.00019178,2]
[364964834,1749360638051,-507.94716466,0.00019178,2]
[364964835,1749360638061,-522.01,0.00019178,2]
[364964836,1749360638070,-440.0,0.00019178,2]
[364964837,1749360638084,-440.0,0.00019178,2]
[364964838,1749360638094,-440.0,0.00019178,2]
[364964839,1749360638105,-440.0,0.00019178,2]
[364964840,1749360638114,-440.0,0.00019178,2]
[364964841,1749360638125,-341.76,0.00019178,2]
[364964842,1749360638135,-440.0,0.00019178,2]
[364964843,1749360638146,-173.69889987,0.00019178,2]
[364964844,1749360638156,-440.0,0.00019178,2]
[364964845,1749360638165,-528.97,0.00019178,2]
[364964846,1749360638299,-305.37020508,0.00019178,2]
[364964847,1749360638320,-134.62979492,0.00019178,2]
[364964848,1749360638331,-366.7228238,0.00019178,2]
[364964849,1749360638342,-465.31,0.00019178,2]
[364964850,1749360638351,-487.87,0.00019178,2]
[364964851,1749360638361,-440.0,0.00019178,2]
[364964852,1749360638371,-766.89,0.00019178,2]
[364964853,1749360638381,-440.0,0.00019178,2]
[364964854,1749360638391,-440.0,0.00019178,2]
[364964855,1749360638400,-440.0,0.00019178,2]
[364964856,1749360638410,-459.00850197,0.00019178,2]
[364964857,1749360638420,-440.0,0.00019178,2]
[364964858,1749360638430,-440.0,0.00019178,2]
[364964859,1749360638440,-440.0,0.00019178,2]
[364964860,1749360638449,-900.91,0.00019178,2]
[364964861,1749360638459,-426.54954192,0.00019178,2]
[364964862,1749360638468,-440.0,0.00019178,2]
[364964863,1749360638478,-444.48812059,0.00019178,2]
[364964864,1749360638488,-226.87963672,0.00019178,2]
[364964865,1749360638499,-440.0,0.00019178,2]
[364964866,1749360638509,-430.0,0.00019178,2]
[364964867,1749360638519,-440.0,0.00019178,2]
[364964868,1749360638528,-440.0,0.00019178,2]
[364964869,1749360638539,-246.33217553,0.00019178,2]
[364964870,1749360638551,-440.0,0.00019178,2]
[364964871,1749360638560,-434.32275487,0.00019178,2]
[364964872,1749360638569,-190.263646,0.00019178,2]
[364964873,1749360638578,-150.0,0.00019363,30]
[364964874,1749360638588,-455.4644235,0.00019452,2]
[364964875,1749360638597,-502.15247334,0.00019452,2]
[364964876,1749360638607,-435.69948605,0.00019452,2]
[364964877,1749360638617,-440.0,0.00019452,2]
[364964878,1749360638626,-560.49588229,0.00019452,2]
[364964879,1749360638635,-444.87215698,0.00019452,2]
[364964880,1749360638645,-233.89401157,0.00019452,2]
[364964881,1749360638654,-503.8546327,0.00019452,2]
[364964882,1749360638663,-440.0,0.00019452,2]
[364964883,1749360638673,-455.06833737,0.00019452,2]
[364964884,1749360638683,-440.0,0.00019452,2]
[364964885,1749360638692,-366.66228101,0.00019452,2]
[364964886,1749360638702,-440.0,0.00019452,2]
[364964887,1749360638711,-440.0,0.00019452,2]
[364964888,1749360638721,-170.84769655,0.00019452,2]
[364964889,1749360638730,-440.0,0.00019452,2]
[364964890,1749360638739,-440.0,0.00019452,2]
[364964891,1749360638748,-460.38926323,0.00019452,2]
[364964892,1749360638757,-440.0,0.00019452,2]
[364964893,1749360638767,-440.0,0.00019452,2]
[364964894,1749360638776,-440.0,0.00019452,2]
[364964895,1749360638786,-440.0,0.00019452,2]
[364964896,1749360638795,-440.0,0.00019452,2]
[364964897,1749360638805,-420.0,0.00019452,2]
[364964898,1749360638815,-343.18644927,0.00019452,2]
[364964899,1749360638825,-440.0,0.00019452,2]
[364964900,1749360638834,-440.0,0.00019452,2]
[364964901,1749360638844,-344.0166995,0.00019452,2]
[364964902,1749360638854,-461.96012296,0.00019452,2]
[364964903,1749360638864,-440.0,0.00019452,2]
[364964904,1749360638874,-440.0,0.00019452,2]
[364964905,1749360638884,-440.0,0.00019452,2]
[364964906,1749360638894,-440.0,0.00019452,2]
[364964907,1749360638904,-518.29188385,0.00019452,2]
[364964908,1749360638913,-440.0,0.00019452,2]
[364964909,1749360638922,-440.0,0.00019452,2]
[364964910,1749360638933,-440.0,0.00019452,2]
[364964911,1749360638947,-440.0,0.00019452,2]
[364964912,1749360638956,-440.0,0.00019452,2]
[364964913,1749360638966,-440.0,0.00019452,2]
[364964914,1749360638975,-420.0,0.00019452,2]
[364964915,1749360638985,-541.63407693,0.00019452,2]
[364964916,1749360638995,-435.21535527,0.00019452,2]
[364964917,1749360639004,-410.0,0.00019452,2]
[364964918,1749360639013,-440.0,0.00019452,2]
[364964919,1749360639024,-440.0,0.00019452,2]
[364964920,1749360639034,-518.57950911,0.00019452,2]
[364964921,1749360639044,-440.0,0.00019452,2]
[364964922,1749360639054,-440.0,0.00019452,2]
[364964923,1749360639064,-440.0,0.00019452,2]
[364964924,1749360639074,-440.0,0.00019452,2]
[364964925,1749360639087,-440.0,0.00019452,2]
[364964926,1749360639096,-164.87,0.00019452,2]
[364964927,1749360639106,-440.0,0.00019452,2]
[364964928,1749360639115,-440.0,0.00019452,2]
[364964929,1749360639125,-440.0,0.00019452,2]
[364964930,1749360639134,-440.0,0.00019452,2]
[364964931,1749360639144,-461.4,0.00019452,2]
[364964932,1749360639153,-440.0,0.00019452,2]
[364964933,1749360639165,-440.0,0.00019452,2]
[364964934,1749360639175,-440.0,0.00019452,2]
[364964935,1749360639184,-440.0,0.00019452,2]
[364964936,1749360639193,-431.78910029,0.00019452,2]
[364964937,1749360639203,-440.0,0.00019452,2]
[364964938,1749360639212,-440.0,0.00019452,2]
[364964939,1749360639221,-442.69359754,0.00019452,2]
[364964940,1749360639231,-359.16264308,0.00019452,2]
[364964941,1749360639240,-440.0,0.00019452,2]
[364964942,1749360639250,-440.0,0.00019452,2]
[364964943,1749360639259,-440.0,0.00019452,2]
[364964944,1749360639268,-440.0,0.00019452,2]
[364964945,1749360639278,-440.0,0.00019452,2]
[364964946,1749360639287,-440.0,0.00019452,2]
[364964947,1749360639296,-440.0,0.00019452,2]
[364964948,1749360639305,-189.30534601,0.00019452,2]
[364964949,1749360639314,-440.0,0.00019452,2]
[364964950,1749360639324,-440.0,0.00019452,2]
[364964951,1749360639334,-500.0,0.00019452,2]
[364964952,1749360639344,-448.35159727,0.00019452,2]
[364964953,1749360639353,-452.472781,0.00019452,2]
[364964954,1749360639363,-440.0,0.00019452,2]
[364964955,1749360639373,-440.0,0.00019452,2]
[364964956,1749360639383,-281.63049937,0.00019452,2]
[364964957,1749360639393,-440.0,0.00019452,2]
[364964958,1749360639403,-440.0,0.00019452,2]
[364964959,1749360639415,-440.0,0.00019452,2]
[364964960,1749360639426,-488.42698468,0.00019452,2]
[364964961,1749360639437,-440.0,0.00019452,2]
[364964962,1749360639446,-440.0,0.00019452,2]
[364964963,1749360639456,-440.0,0.00019452,2]
[364964964,1749360639465,-426.50910785,0.00019452,2]
[364964965,1749360639475,-420.0,0.00019452,2]
[364964966,1749360639485,-440.0,0.00019452,2]
[364964967,1749360639495,-440.0,0.00019452,2]
[364964968,1749360639505,-440.0,0.00019452,2]
[364964969,1749360639515,-507.47391769,0.00019452,2]
[364964970,1749360639524,-232.78272509,0.00019452,2]
[364964971,1749360639534,-440.0,0.00019452,2]
[364964972,1749360639543,-454.00626547,0.00019452,2]
[364964973,1749360639554,-440.0,0.00019452,2]
[364964974,1749360639566,-440.0,0.00019452,2]
[364964975,1749360639578,-440.0,0.00019452,2]
[364964976,1749360639588,-179.07789097,0.00019452,2]
[364964977,1749360639598,-440.0,0.00019452,2]
[364964978,1749360639608,-440.0,0.00019452,2]
[364964979,1749360639617,-440.0,0.00019452,2]
[364964980,1749360639627,-440.0,0.00019452,2]
[364964981,1749360639637,-440.0,0.00019452,2]
[364964982,1749360639647,-597.58,0.00019452,2]
[364964983,1749360639656,-440.0,0.00019452,2]
[364964984,1749360639665,-440.0,0.00019452,2]
[364964985,1749360639675,-440.0,0.00019452,2]
[364964986,1749360639685,-440.0,0.00019452,2]
[364964987,1749360639695,-440.0,0.00019452,2]
[364964988,1749360639704,-440.0,0.00019452,2]
[364964989,1749360639714,-549.16803782,0.00019452,2]
[364964990,1749360639723,-440.0,0.00019452,2]
[364964991,1749360639733,-440.0,0.00019452,2]
[364964992,1749360639742,-440.0,0.00019452,2]
[364964993,1749360639753,-440.0,0.00019452,2]
[364964994,1749360639764,-440.0,0.00019452,2]
[364964995,1749360639774,-440.0,0.00019452,2]
[364964996,1749360639784,-440.0,0.00019452,2]
[364964997,1749360639794,-440.0,0.00019452,2]
[364964998,1749360639804,-476.98,0.00019452,2]
[364964999,1749360639814,-440.0,0.00019452,2]
[364965000,1749360639823,-352.72767989,0.00019452,2]
[364965001,1749360639833,-420.0,0.00019452,2]
[364965002,1749360639842,-440.0,0.00019452,2]
[364965003,1749360639851,-440.0,0.00019452,2]
[364965004,1749360639862,-440.0,0.00019452,2]
[364965005,1749360639872,-420.0,0.00019452,2]
[364965006,1749360639881,-440.0,0.00019452,2]
[364965007,1749360639890,-440.0,0.00019452,2]
[364965008,1749360639900,-440.0,0.00019452,2]
[364965009,1749360639909,-440.0,0.00019452,2]
[364965010,1749360639919,-202.36,0.00019452,2]
[364965011,1749360639930,-350.0,0.00019452,2]
[364965012,1749360639940,-448.45471386,0.00019452,2]
[364965013,1749360639949,-420.0,0.00019452,2]
[364965014,1749360639960,-440.0,0.00019452,2]
[364965015,1749360639972,-1338.61,0.00019452,2]
[364965016,1749360639984,-440.0,0.00019452,2]
[364965017,1749360639995,-432.87495642,0.00019452,2]
[364965019,1749360640005,-440.0,0.00019452,2]
[364965021,1749360640015,-440.0,0.00019452,2]
[364965023,1749360640024,-562.07,0.00019452,2]
[364965024,1749360640034,-440.0,0.00019452,2]
[364965026,1749360640044,-632.88,0.00019452,2]
[364965028,1749360640054,-522.01,0.00019452,2]
[364965030,1749360640064,-440.0,0.00019452,2]
[364965032,1749360640073,-440.0,0.00019452,2]
[364965034,1749360640083,-440.0,0.00019452,2]
[364965036,1749360640094,-440.0,0.00019452,2]
[364965038,1749360640103,-440.0,0.00019452,2]
[364965040,1749360640113,-430.0,0.00019452,2]
[364965042,1749360640127,-522.2059424,0.00019452,2]
[364965044,1749360640138,-528.97,0.00019452,2]
[364965046,1749360640149,-440.0,0.00019452,2]
[364965048,1749360640159,-465.31,0.00019452,2]
[364965050,1749360640168,-487.87,0.00019452,2]
[364965052,1749360640178,-440.0,0.00019452,2]
[364965054,1749360640188,-766.89,0.00019452,2]
[364965056,1749360640198,-440.0,0.00019452,2]
[364965058,1749360640209,-440.0,0.00019452,2]
[364965060,1749360640218,-440.0,0.00019452,2]
[364965062,1749360640228,-437.58325611,0.00019452,2]
[364965064,1749360640238,-440.0,0.00019452,2]
[364965066,1749360640248,-900.91,0.00019452,2]
[364965068,1749360640257,-440.0,0.00019452,2]
[364965070,1749360640266,-440.0,0.00019452,2]
[364965072,1749360640275,-440.0,0.00019452,2]
[364965074,1749360640284,-440.0,0.00019452,2]
[364965076,1749360640294,-440.0,0.00019452,2]
[364965078,1749360640303,-500.0,0.00019479,2]
[364965080,1749360640313,-500.0,0.00019507,2]
[364965082,1749360640323,-500.0,0.00019534,2]
[364965084,1749360640334,-500.0,0.00019562,2]
[364965086,1749360640344,-420.0,0.00019565,2]
[364965088,1749360640354,-420.0,0.00019565,2]
[364965090,1749360640364,-500.0,0.00019589,2]
[364965092,1749360640374,-500.0,0.00019616,2]
[364965094,1749360640384,-1715.0173358,0.00019642,2]
[364965095,1749360640394,-409.39212055,0.00019644,2]
[364965097,1749360640403,-531.45076374,0.00019717,2]
[364965099,1749360640412,-1000.0,0.00019721,2]
[364965102,1749360640422,-1000.0,0.00019721,2]
[364965104,1749360640432,-500.0,0.00019721,2]
[364965105,1749360640442,-1000.0,0.00019721,2]
[364965108,1749360640452,-458.1911264,0.00019726,2]
[364965109,1749360640463,-411.42446355,0.00019726,2]
[364965111,1749360640472,-219.90228974,0.00019726,2]
[364965113,1749360640482,-434.09477188,0.00019726,2]
[364965115,1749360640491,-440.0,0.00019726,2]
[364965118,1749360640501,-440.0,0.00019726,2]
[364965119,1749360640510,-440.0,0.00019726,2]
[364965121,1749360640520,-445.5047205,0.00019726,2]
[364965123,1749360640529,-539.06858718,0.00019726,2]
[364965125,1749360640538,-334.80128234,0.00019726,2]
[364965127,1749360640548,-440.5806873,0.00019726,2]
[364965129,1749360640558,-440.0,0.00019726,2]
[364965131,1749360640568,-440.0,0.00019726,2]
[364965133,1749360640577,-479.17301178,0.00019726,2]
[364965135,1749360640586,-410.0,0.00019726,2]
[364965137,1749360640595,-440.0,0.00019726,2]
[364965139,1749360640605,-241.27473128,0.00019726,2]
[364965141,1749360640614,-440.0,0.00019726,2]
[364965143,1749360640624,-440.0,0.00019726,2]
[364965145,1749360640633,-545.45702426,0.00019726,2]
[364965147,1749360640643,-472.97077124,0.00019726,2]
[364965149,1749360640652,-440.0,0.00019726,2]
[364965151,1749360640661,-528.20320171,0.00019726,2]
[364965153,1749360640670,-440.0,0.00019726,2]
[364965155,1749360640679,-492.80176838,0.00019726,2]
[364965157,1749360640689,-440.0,0.00019726,2]
[364965159,1749360640699,-440.0,0.00019726,2]
[364965161,1749360640708,-440.0,0.00019726,2]
[364965163,1749360640717,-440.0,0.00019726,2]
[364965165,1749360640726,-206.6274282,0.00019726,2]
[364965167,1749360640735,-440.0,0.00019726,2]
[364965169,1749360640744,-212.21124586,0.00019726,2]
[364965171,1749360640754,-440.0,0.00019726,2]
[364965173,1749360640763,-410.0,0.00019726,2]
[364965175,1749360640772,-431.03113077,0.00019726,2]
[364965177,1749360640781,-440.0,0.00019726,2]
[364965179,1749360640792,-452.43505789,0.00019726,2]
[364965181,1749360640801,-440.0,0.00019726,2]
[364965182,1749360640810,-440.0,0.00019726,2]
[364965183,1749360640819,-440.0,0.00019726,2]
[364965184,1749360640828,-442.16245737,0.00019726,2]
[364965185,1749360640838,-440.0,0.00019726,2]
[364965186,1749360640847,-440.0,0.00019726,2]
[364965187,1749360640857,-400.0,0.00019726,2]
[364965188,1749360640866,-440.0,0.00019726,2]
[364965189,1749360640875,-440.0,0.00019726,2]
[364965190,1749360640885,-340.7026197,0.00019726,2]
[364965191,1749360640894,-440.0,0.00019726,2]
[364965192,1749360640904,-440.0,0.00019726,2]
[364965193,1749360640914,-440.0,0.00019726,2]
[364965194,1749360640924,-440.0,0.00019726,2]
[364965195,1749360640933,-440.0,0.00019726,2]
[364965196,1749360640943,-440.0,0.00019726,2]
[364965197,1749360640952,-440.0,0.00019726,2]
[364965198,1749360640963,-440.0,0.00019726,2]
[364965199,1749360640976,-440.0,0.00019726,2]
[364965200,1749360640985,-440.0,0.00019726,2]
[364965201,1749360640994,-440.0,0.00019726,2]
[364965202,1749360641003,-440.0,0.00019726,2]
[364965203,1749360641013,-462.72188227,0.00019726,2]
[364965204,1749360641136,-440.0,0.00019726,2]
[364965205,1749360641146,-440.0,0.00019726,2]
[364965206,1749360641157,-466.36435969,0.00019726,2]
[364965207,1749360641167,-440.0,0.00019726,2]
[364965208,1749360641177,-440.0,0.00019726,2]
[364965209,1749360641187,-440.0,0.00019726,2]
[364965210,1749360641197,-440.0,0.00019726,2]
[364965211,1749360641207,-440.0,0.00019726,2]
[364965212,1749360641217,-397.33191295,0.00019726,2]
[364965213,1749360641227,-440.0,0.00019726,2]
[364965214,1749360641237,-597.58,0.00019726,2]
[364965215,1749360641247,-440.0,0.00019726,2]
[364965216,1749360641257,-440.0,0.00019726,2]
[364965217,1749360641267,-440.0,0.00019726,2]
[364965218,1749360641277,-440.0,0.00019726,2]
[364965219,1749360641286,-440.0,0.00019726,2]
[364965220,1749360641296,-440.0,0.00019726,2]
[364965221,1749360641306,-440.0,0.00019726,2]
[364965222,1749360641315,-440.0,0.00019726,2]
[364965223,1749360641326,-440.0,0.00019726,2]
[364965224,1749360641335,-440.0,0.00019726,2]
[364965225,1749360641345,-336.81100998,0.00019726,2]
[364965226,1749360641355,-440.0,0.00019726,2]
[364965227,1749360641366,-461.38059154,0.00019726,2]
[364965228,1749360641375,-440.0,0.00019726,2]
[364965229,1749360641385,-440.0,0.00019726,2]
[364965230,1749360641395,-440.0,0.00019726,2]
[364965231,1749360641405,-440.0,0.00019726,2]
[364965232,1749360641414,-440.0,0.00019726,2]
[364965233,1749360641426,-440.0,0.00019726,2]
[364965234,1749360641435,-440.0,0.00019726,2]
[364965235,1749360641446,-437.56767647,0.00019726,2]
[364965236,1749360641456,-440.0,0.00019726,2]
[364965237,1749360641467,-160.0,0.00019726,2]
[364965238,1749360641476,-420.0,0.00019726,2]
[364965239,1749360641487,-1338.61,0.00019726,2]
[364965240,1749360641497,-440.0,0.00019726,2]
[364965241,1749360641507,-440.0,0.00019726,2]
[364965242,1749360641518,-440.0,0.00019726,2]
[364965243,1749360641528,-562.07,0.00019726,2]
[364965244,1749360641539,-440.0,0.00019726,2]
[364965245,1749360641550,-632.88,0.00019726,2]
[364965246,1749360641559,-522.01,0.00019726,2]
[364965247,1749360641570,-440.0,0.00019726,2]
[364965248,1749360641579,-410.0,0.00019726,2]
[364965249,1749360641588,-440.0,0.00019726,2]
[364965250,1749360641598,-440.0,0.00019726,2]
[364965251,1749360641607,-440.0,0.00019726,2]
[364965252,1749360641616,-528.97,0.00019726,2]
[364965253,1749360641627,-440.0,0.00019726,2]
[364965254,1749360641637,-465.31,0.00019726,2]
[364965255,1749360641647,-487.87,0.00019726,2]
[364965256,1749360641656,-440.0,0.00019726,2]
[364965257,1749360641667,-766.89,0.00019726,2]
[364965258,1749360641677,-520.69324064,0.00019726,2]
[364965259,1749360641687,-440.0,0.00019726,2]
[364965260,1749360641698,-440.0,0.00019726,2]
[364965261,1749360641708,-440.0,0.00019726,2]
[364965262,1749360641720,-900.91,0.00019726,2]
[364965263,1749360641730,-440.0,0.00019726,2]
[364965264,1749360641740,-440.0,0.00019726,2]
[364965265,1749360641749,-440.0,0.00019726,2]
[364965266,1749360641759,-440.0,0.00019726,2]
[364965267,1749360641769,-440.0,0.00019726,2]
[364965268,1749360641779,-252.30946083,0.00019807,2]
[364965269,1749360641790,-150.0,0.00019882,2]
[364965270,1749360641800,-3434.0552121,0.0002,2]
[364965271,1749360641810,-401.96190903,0.0002,2]
[364965272,1749360641821,-440.0,0.0002,2]
[364965273,1749360641831,-440.0,0.0002,2]
[364965274,1749360641841,-408.19622636,0.0002,2]
[364965275,1749360641850,-246.70224542,0.0002,2]
[364965276,1749360641861,-341.97587084,0.0002,2]
[364965277,1749360641871,-440.0,0.0002,2]
[364965278,1749360641879,-421.44146629,0.0002,2]
[364965279,1749360641890,-440.0,0.0002,2]
[364965280,1749360641899,-440.0,0.0002,2]
[364965281,1749360641908,-440.0,0.0002,2]
[364965282,1749360641918,-440.0,0.0002,2]
[364965283,1749360641929,-258.4389094,0.0002,2]
[364965284,1749360641939,-440.0,0.0002,2]
[364965285,1749360641948,-440.0,0.0002,2]
[364965286,1749360641958,-440.0,0.0002,2]
[364965287,1749360641968,-440.0,0.0002,2]
[364965288,1749360641977,-440.0,0.0002,2]
[364965289,1749360641987,-440.0,0.0002,2]
[364965290,1749360641996,-470.28330677,0.0002,2]
[364965291,1749360642005,-548.01460355,0.0002,2]
[364965292,1749360642015,-445.03576064,0.0002,2]
[364965293,1749360642024,-588.45698794,0.0002,2]
[364965294,1749360642034,-440.0,0.0002,2]
[364965295,1749360642044,-440.0,0.0002,2]
[364965296,1749360642053,-440.0,0.0002,2]
[364965297,1749360642062,-440.0,0.0002,2]
[364965298,1749360642073,-440.0,0.0002,2]
[364965299,1749360642084,-502.64261384,0.0002,2]
[364965300,1749360642095,-400.0,0.0002,2]
[364965301,1749360642104,-260.0,0.0002,2]
[364965302,1749360642117,-440.0,0.0002,2]
[364965303,1749360642126,-440.0,0.0002,2]
[364965304,1749360642136,-440.0,0.0002,2]
[364965305,1749360642145,-193.25,0.0002,2]
[364965306,1749360642155,-440.0,0.0002,2]
[364965307,1749360642164,-440.0,0.0002,2]
[364965308,1749360642174,-442.86435403,0.0002,2]
[364965309,1749360642184,-440.0,0.0002,2]
[364965310,1749360642193,-440.0,0.0002,2]
[364965311,1749360642203,-390.0,0.0002,2]
[364965312,1749360642213,-440.0,0.0002,2]
[364965313,1749360642223,-410.23895878,0.0002,2]
[364965314,1749360642233,-440.0,0.0002,2]
[364965315,1749360642243,-418.80372629,0.0002,2]
[364965316,1749360642253,-597.58,0.0002,2]
[364965317,1749360642263,-400.0,0.0002,2]
[364965318,1749360642272,-440.0,0.0002,2]
[364965319,1749360642282,-440.0,0.0002,2]
[364965320,1749360642292,-440.0,0.0002,2]
[364965321,1749360642301,-440.0,0.0002,2]
[364965322,1749360642311,-440.0,0.0002,2]
[364965323,1749360642322,-400.0,0.0002,2]
[364965324,1749360642332,-474.78393435,0.0002,2]
[364965325,1749360642342,-440.0,0.0002,2]
[364965326,1749360642353,-410.01621852,0.0002,2]
[364965327,1749360642364,-440.0,0.0002,2]
[364965328,1749360642374,-440.0,0.0002,2]
[364965329,1749360642384,-440.0,0.0002,2]
[364965330,1749360642394,-440.16860411,0.0002,2]
[364965331,1749360642403,-440.0,0.0002,2]
[364965332,1749360642413,-440.0,0.0002,2]
[364965333,1749360642424,-400.0,0.0002,2]
[364965334,1749360642434,-400.0,0.0002,2]
[364965335,1749360642444,-1338.61,0.0002,2]
[364965336,1749360642454,-440.0,0.0002,2]
[364965337,1749360642463,-400.0,0.0002,2]
[364965338,1749360642473,-440.0,0.0002,2]
[364965339,1749360642483,-562.07,0.0002,2]
[364965340,1749360642493,-440.0,0.0002,2]
[364965341,1749360642503,-632.88,0.0002,2]
[364965342,1749360642513,-522.01,0.0002,2]
[364965343,1749360642523,-440.0,0.0002,2]
[364965344,1749360642533,-440.0,0.0002,2]